bitfinex/quotes_ETHUSD_20240917
["timestamp","ask_amount","ask_price","bid_price","bid_amount"]
[1726577155419,2.4207,2320.3,2319.7,3.34931503]
[1726577155420,2.3475,2320.1,2319.7,4.31086]
[1726577155620,0.10777173,2320.0,2319.7,4.31086]
[1726577155845,2.45527171,2320.1,2319.8,4.31064]
[1726577156015,2.45527171,2320.1,2319.7,4.31081]
[1726577156234,0.24552717,2320.0,2319.7,8.62162]
[1726577156446,2.45527171,2320.1,2319.7,4.31081]
[1726577156961,6.76554171,2320.1,2319.5,4.31111]
[1726577157259,6.76554171,2320.1,2319.4,4.31139]
[1726577157260,2.3621,2319.9,2319.4,4.31139]
[1726577157437,0.1077838,2319.8,2319.4,4.31139]
[1726577157637,2.3411,2319.7,2319.3,4.31151]
[1726577157844,0.1077839,2319.6,2319.3,4.31151]
[1726577158070,2.44888379,2319.7,2319.4,4.31133]
[1726577158939,2.3411,2319.7,2319.5,4.31125]
[1726577160570,2.3411,2319.7,2319.5,8.6225]
[1726577160772,2.448,2319.9,2319.7,4.31081]
[1726577161132,2.448,2319.9,2319.6,4.31092]
[1726577161333,3.4418,2319.9,2319.6,4.31092]
[1726577162881,4.3111,2319.6,2319.1,4.312]
[1726577163200,2.37559814,2319.5,2319.0,4.31204]
[1726577163348,2.37559814,2319.5,2318.8,3.34931503]
[1726577163349,2.2678,2319.4,2318.8,3.34931503]
[1726577163669,0.10780522,2319.3,2319.0,4.31209]
[1726577163845,0.10780522,2319.3,2318.8,7.66186503]
[1726577164045,0.10780522,2319.3,2318.7,4.31264]
[1726577164046,2.4945,2319.2,2318.7,4.31264]
[1726577164296,2.4945,2319.2,2318.8,7.66173503]
[1726577164297,0.10781173,2319.1,2318.8,7.66173503]
[1726577164797,0.10781173,2319.1,2318.7,8.6253]
[1726577164960,0.10781173,2319.1,2318.6,4.31293]
[1726577165159,2.4945,2319.0,2318.7,4.31275]
[1726577165685,0.10781497,2318.9,2318.7,4.31275]
[1726577165871,0.10781626,2318.9,2318.5,4.3512674]
[1726577166071,2.60231626,2319.0,2318.6,3.34931503]
[1726577166282,2.4945,2319.0,2318.7,4.31273]
[1726577166758,2.4945,2319.0,2318.6,3.34931503]
[1726577166954,2.4945,2319.0,2318.6,7.66212503]
[1726577167369,0.10782454,2318.9,2318.5,4.3510974]
[1726577167985,0.10782454,2318.9,2318.5,8.6641174]
[1726577168156,0.10782454,2318.9,2318.5,4.3510974]
[1726577168692,3.18591846,2319.0,2318.6,7.66210503]
[1726577168847,2.3214,2318.8,2318.5,4.3510974]
[1726577169792,2.3214,2318.8,2318.5,8.6641274]
[1726577170119,2.42922327,2318.8,2318.5,4.3510974]
[1726577171107,3.06468617,2318.8,2318.5,4.3510974]
[1726577171586,0.10782338,2318.7,2318.5,0.0381474]
[1726577174279,2.3214,2318.8,2318.5,4.3512174]
[1726577174527,2.3214,2318.8,2318.6,7.66223503]
[1726577174830,2.3575,2319.2,2318.6,5.31692278]
[1726577174984,2.3575,2319.2,2318.9,7.66158503]
[1726577175325,2.3575,2319.2,2318.9,4.31227]
[1726577176028,7.49,2319.3,2319.0,4.31211]
[1726577176177,7.49,2319.3,2319.1,7.66122503]
[1726577176377,7.49,2319.3,2319.1,4.31191]
[1726577177013,2.4103,2319.5,2319.2,4.3118]
[1726577181666,2.4103,2319.5,2319.2,4.31175]
[1726577182239,3.52431267,2319.5,2319.1,4.31197]
[1726577184989,3.52431267,2319.5,2319.1,4.3119]
[1726577185307,2.4103,2319.5,2319.1,8.62378]
[1726577186761,2.4103,2319.5,2319.1,3.34931503]
[1726577186961,2.4103,2319.5,2319.2,4.31175]
[1726577187980,2.4103,2319.5,2319.4,4.31145]
[1726577188176,2.3355,2319.8,2319.5,4.31118]
[1726577188376,2.3355,2319.8,2319.4,4.31142]
[1726577188679,6.64621,2319.8,2319.4,4.31142]
[1726577189413,6.64621,2319.8,2319.3,7.66094503]
[1726577189560,7.32160932,2319.8,2319.4,4.31144]
[1726577191501,11.63244932,2319.8,2319.3,4.31163]
[1726577191717,7.32160932,2319.8,2319.3,4.31163]
[1726577192025,7.42939578,2319.8,2319.3,4.31163]
[1726577193030,7.32160932,2319.8,2319.3,4.31163]
[1726577193185,11.63244932,2319.8,2319.3,4.31163]
[1726577193731,7.32160932,2319.8,2319.3,4.31163]
[1726577193892,7.32160932,2319.8,2319.3,8.62319]
[1726577194719,11.63241932,2319.8,2319.3,8.62319]
[1726577194925,7.32160932,2319.8,2319.4,4.31145]
[1726577197188,2.4708,2319.6,2319.3,4.31156]
[1726577197384,2.4708,2319.6,2319.3,8.62313]
[1726577197585,2.4708,2319.6,2319.4,4.31145]
[1726577198834,2.4708,2319.6,2319.3,8.62311]
[1726577199038,2.4708,2319.6,2319.3,4.31155]
[1726577199278,2.4708,2319.6,2319.3,8.62311]
[1726577201544,2.4708,2319.6,2319.4,4.31145]
[1726577201744,2.4708,2319.6,2319.4,4.31133]
[1726577201950,2.334,2319.9,2319.6,4.31097]
[1726577204979,6.64453,2319.9,2319.5,4.31127]
[1726577205282,6.69061,2319.7,2319.3,4.31147]
[1726577205453,6.69061,2319.7,2319.1,7.66121503]
[1726577205454,2.3796,2319.5,2319.2,4.31173]
[1726577205894,2.3796,2319.5,2319.1,4.31191]
[1726577205895,6.69089,2319.5,2319.1,4.31191]
[1726577206080,6.79866619,2319.5,2319.0,4.31209]
[1726577206404,2.48738619,2319.5,2319.2,4.31181]
[1726577206558,3.55749772,2319.5,2319.2,4.31181]
[1726577206761,3.66529394,2319.5,2319.2,4.31181]
[1726577206999,7.97658394,2319.5,2319.1,11.97305503]
[1726577207224,2.48739622,2319.5,2319.2,4.31176]
[1726577207359,2.3796,2319.5,2319.2,4.31176]
[1726577208082,2.3796,2319.5,2319.2,8.62349]
[1726577208264,2.4249,2319.7,2319.3,3.34931503]
[1726577208462,2.4249,2319.7,2319.4,4.31128]
[1726577211075,2.443,2319.6,2319.3,4.31163]
[1726577211274,6.86196743,2319.6,2319.1,4.31201]
[1726577211486,4.31136,2319.5,2319.1,4.31192]
[1726577211690,4.41915128,2319.5,2319.1,4.31192]
[1726577212214,6.75411,2319.6,2319.2,4.31182]
[1726577212370,6.86190116,2319.6,2319.2,4.31182]
[1726577212704,7.97918128,2319.6,2319.2,4.31182]
[1726577213374,2.4043,2319.4,2319.0,4.31216]
[1726577213701,6.71578,2319.4,2319.0,8.62419]
[1726577214006,6.71578,2319.4,2318.8,4.31245]
[1726577214007,0.10779125,2319.3,2318.8,4.31245]
[1726577214213,0.10779125,2319.3,2318.5,34.3511874]
[1726577214214,4.31246,2318.9,2318.5,34.3511874]
[1726577214521,2.4043,2318.7,2318.5,30.0381474]
[1726577214844,2.4043,2318.7,2318.5,34.3511974]
[1726577217409,2.4043,2318.7,2318.5,37.70051243]
[1726577217709,2.4043,2318.7,2318.6,4.31294]
[1726577218314,2.4602,2318.9,2318.7,4.31272]
[1726577218522,2.4602,2318.9,2318.8,4.31257]
[1726577218684,11.80175,2319.3,2318.7,7.66197503]
[1726577218685,2.4602,2319.2,2318.9,4.31238]
[1726577218890,2.4602,2319.5,2319.2,4.31173]
[1726577219100,2.4602,2319.5,2319.2,7.66104503]
[1726577219319,2.4602,2319.5,2319.0,4.31206]
[1726577219320,6.77147,2319.5,2319.0,7.66137503]
[1726577219615,4.41936616,2319.4,2318.9,4.31236]
[1726577219823,2.3896,2319.3,2318.8,7.66175503]
[1726577219987,6.70134,2319.3,2318.9,4.31238]
[1726577220990,4.31202,2319.1,2318.7,4.31264]
[1726577221196,2.4059,2319.1,2318.7,4.31264]
[1726577221423,4.42003473,2319.0,2318.5,30.0381474]
[1726577221733,4.42003473,2319.0,2318.5,34.3512674]
[1726577221734,6.56251,2318.9,2318.5,34.3512674]
[1726577221951,6.67033449,2318.9,2318.5,34.3512674]
[1726577222108,6.67033449,2318.9,2318.5,30.0381474]
[1726577222109,4.31278,2318.7,2318.5,30.0381474]
[1726577222308,2.4176,2318.6,2318.5,30.0381474]
[1726577223419,2.4176,2318.6,2318.5,34.3512774]
[1726577223646,4.75429347,2319.0,2318.6,4.31284]
[1726577223647,2.4576,2318.9,2318.6,4.31284]
[1726577223820,2.4576,2318.9,2318.7,4.31276]
[1726577224140,2.4576,2318.9,2318.8,4.31257]
[1726577224346,4.31194,2319.2,2319.0,4.31211]
[1726577224347,2.4576,2319.2,2319.0,4.31211]
[1726577224559,2.4576,2319.2,2318.6,4.31293]
[1726577224560,6.76951,2319.2,2318.6,7.66215503]
[1726577224707,6.76951,2319.2,2318.8,4.31255]
[1726577225639,11.08143,2319.2,2318.8,4.31255]
[1726577225855,7.88843354,2319.2,2318.8,4.31255]
[1726577226011,0.10781224,2319.1,2318.8,4.31248]
[1726577226208,12.30818578,2319.2,2318.8,4.31248]
[1726577226550,7.99624578,2319.2,2318.8,4.31248]
[1726577227409,0.78376074,2319.1,2318.8,4.31248]
[1726577228300,6.76951,2319.2,2318.8,4.31248]
[1726577228504,2.4576,2319.2,2318.8,11.97426503]
[1726577228704,2.4576,2319.2,2318.8,7.66178503]
[1726577229209,6.87726215,2319.2,2318.8,7.66178503]
[1726577230267,2.4576,2319.2,2318.8,7.66178503]
[1726577230431,2.4576,2319.2,2318.9,4.31237]
[1726577230650,2.4475,2319.4,2319.2,4.31169]
[1726577230961,2.4475,2319.4,2319.2,4.31182]
[1726577231879,2.4475,2319.4,2319.2,4.31172]
[1726577232176,2.4475,2319.4,2319.3,4.31164]
[1726577232377,2.2588,2319.6,2319.3,4.31164]
[1726577232734,2.2588,2319.6,2319.4,4.31145]
[1726577233178,2.2588,2319.6,2319.3,4.31161]
[1726577234136,2.2588,2319.6,2319.1,4.31184]
[1726577234137,6.56989,2319.6,2319.2,4.3118]
[1726577234444,8.51475967,2319.6,2319.2,4.3118]
[1726577234981,8.51475967,2319.6,2319.2,4.31175]
[1726577236235,8.51475967,2319.6,2319.2,8.62349]
[1726577236430,8.51475967,2319.6,2319.2,4.31174]
[1726577236978,8.51475967,2319.6,2319.2,8.62348]
[1726577237182,2.2574,2319.4,2319.2,4.31182]
[1726577237478,2.2574,2319.4,2319.1,4.31192]
[1726577237778,2.2574,2319.4,2319.1,8.62385]
[1726577238638,2.2574,2319.4,2319.2,4.31172]
[1726577238838,2.2574,2319.4,2319.2,11.97279503]
[1726577239238,2.2574,2319.4,2319.2,7.66103503]
[1726577239650,2.2574,2319.4,2319.1,4.31198]
[1726577240081,2.2574,2319.4,2319.2,4.31182]
[1726577243186,2.2574,2319.4,2319.2,4.31168]
[1726577243398,2.2574,2319.4,2319.3,4.31164]
[1726577249933,2.2574,2319.4,2319.0,3.34931503]
[1726577249934,2.48314,2319.4,2319.0,4.3121]
[1726577250249,2.48314,2319.4,2319.0,8.62417]
[1726577250250,6.79467,2319.4,2319.0,8.62417]
[1726577250446,2.48314,2319.4,2319.1,4.31201]
[1726577252532,2.2574,2319.4,2319.1,4.31201]
[1726577260169,2.2574,2319.4,2319.0,4.31207]
[1726577260170,2.2574,2319.4,2319.2,4.3118]
[1726577261338,2.2574,2319.4,2319.1,4.31196]
[1726577261546,2.2574,2319.4,2319.1,4.31201]
[1726577261751,2.2574,2319.4,2319.0,4.31215]
[1726577261947,2.2574,2319.4,2319.1,4.31194]
[1726577267007,2.2574,2319.4,2319.3,4.31164]
[1726577267178,2.4008,2319.7,2319.4,4.31133]
[1726577267514,2.4008,2319.7,2319.4,5.85705439]
[1726577269669,6.7117,2319.7,2319.4,5.85705439]
[1726577269868,7.69364811,2319.7,2319.4,5.85705439]
[1726577270092,3.38274811,2319.7,2319.4,5.85705439]
[1726577270789,0.98194811,2319.7,2319.3,4.31158]
[1726577271103,2.4269,2319.6,2319.4,4.31145]
[1726577271665,2.3569,2319.5,2319.0,1.54572439]
[1726577271977,2.3569,2319.4,2319.1,4.31193]
[1726577272183,3.46561867,2319.4,2319.1,4.31193]
[1726577273203,3.46561867,2319.4,2319.1,8.6238]
[1726577274180,3.46561867,2319.4,2319.1,8.62379]
[1726577274387,2.3569,2319.4,2319.1,8.62379]
[1726577274830,2.3569,2319.4,2319.1,4.31187]
[1726577275048,2.3569,2319.4,2319.2,1.54572439]
[1726577276259,2.3569,2319.4,2319.3,4.31164]
[1726577278363,4.76223058,2319.9,2319.5,4.31127]
[1726577278364,2.3688,2319.6,2319.5,4.31127]
[1726577278543,2.3688,2319.6,2319.5,5.85699439]
[1726577278757,2.3688,2319.6,2319.3,5.85724439]
[1726577278964,2.3688,2319.6,2319.4,4.31127]
[1726577279336,3.04753946,2319.6,2319.4,4.31127]
[1726577279680,3.04753946,2319.6,2319.3,5.85729439]
[1726577280039,3.04753946,2319.6,2319.2,4.31175]
[1726577280040,7.35869946,2319.6,2319.2,4.31175]
[1726577280233,6.74507,2319.4,2318.9,4.31226]
[1726577280575,6.74507,2319.4,2318.9,8.62455]
[1726577280576,6.74512,2319.4,2318.9,8.62455]
[1726577280778,6.8529206,2319.4,2318.9,8.62455]
[1726577280989,6.8529206,2319.4,2319.0,5.85790439]
[1726577281279,1.11642106,2319.3,2319.0,1.54572439]
[1726577281848,1.11642106,2319.3,2319.0,5.85791439]
[1726577282068,1.11642106,2319.3,2318.9,8.62452]
[1726577282271,6.85278787,2319.4,2319.0,4.31219]
[1726577283283,2.4335,2319.4,2319.0,7.6615809]
[1726577283443,2.4335,2319.4,2319.2,7.6612809]
[1726577283649,2.2774,2319.7,2319.5,4.31112]
[1726577283948,2.2774,2319.7,2319.6,4.31108]
[1726577284150,2.4974,2319.9,2319.7,4.31088]
[1726577284651,2.4974,2319.9,2319.6,4.31106]
[1726577286582,2.4974,2319.9,2319.5,4.31113]
[1726577286797,0.10776968,2319.8,2319.4,4.31137]
[1726577287096,2.2738,2319.7,2319.4,4.31137]
[1726577288199,2.19569785,2321.7,2319.1,3.3494609]
[1726577288200,4.41886909,2319.6,2319.2,4.31175]
[1726577288350,4.41886909,2319.6,2319.1,4.31188]
[1726577288351,2.3941,2319.5,2319.1,4.31188]
[1726577288547,2.3941,2319.5,2319.1,8.62381]
[1726577288793,2.3941,2319.5,2319.1,4.31188]
[1726577288995,3.07539691,2319.5,2319.1,4.31188]
[1726577289801,3.07539691,2319.5,2319.1,8.6238]
[1726577290090,3.07539691,2319.5,2319.1,4.31188]
[1726577290299,2.2891,2319.4,2319.1,4.31188]
[1726577290596,2.3102,2319.3,2318.9,7.6617009]
[1726577290951,2.3102,2319.3,2318.9,4.31224]
[1726577291154,7.78337569,2319.3,2318.9,4.31224]
[1726577291364,2.3657,2319.1,2318.5,25.68860069]
[1726577291605,0.10780429,2319.2,2318.6,4.31284]
[1726577291606,2.3657,2318.9,2318.6,4.31284]
[1726577291768,2.3754,2318.8,2318.5,20.4707474]
[1726577292284,0.10782391,2318.7,2318.5,20.4707474]
[1726577292661,4.42069438,2318.7,2318.5,20.4707474]
[1726577292872,2.4383,2318.6,2318.5,20.4707474]
[1726577296719,2.4383,2318.6,2318.5,20.0381474]
[1726577297900,6.65139,2319.0,2318.5,27.7007383]
[1726577298092,6.65139,2319.0,2318.7,7.6621309]
[1726577298093,2.3391,2319.0,2318.7,7.6621309]
[1726577298710,2.3391,2319.0,2318.6,4.31276]
[1726577300012,2.3391,2319.0,2318.7,4.31273]
[1726577301199,2.3391,2319.0,2318.6,8.62563]
[1726577301613,2.3391,2319.0,2318.6,4.31276]
[1726577301825,2.3391,2319.0,2318.6,8.62562]
[1726577302638,2.3391,2319.0,2318.5,24.3511874]
[1726577302639,0.1078169,2318.9,2318.5,24.3511874]
[1726577302812,4.4202169,2318.9,2318.5,24.3511574]
[1726577303142,0.1078169,2318.9,2318.5,24.3511574]
[1726577303504,4.4202069,2318.9,2318.5,24.3511574]
[1726577304096,2.2532,2318.8,2318.5,24.3511574]
[1726577304891,2.4072,2318.6,2318.5,20.0381474]
[1726577314283,2.4072,2318.6,2318.5,23.3876083]
[1726577314492,2.2878,2318.8,2318.5,23.3876083]
[1726577314795,2.2878,2318.8,2318.5,20.0381474]
[1726577314996,6.6004,2318.8,2318.5,20.0381474]
[1726577316001,4.31294,2318.6,2318.5,20.0381474]
[1726577317153,2.2878,2318.7,2318.5,20.0381474]
[1726577317154,6.60058,2318.7,2318.5,20.0381474]
[1726577317354,2.2878,2318.7,2318.5,20.0381474]
[1726577318167,6.60057,2318.7,2318.5,20.0381474]
[1726577319654,2.2878,2318.7,2318.5,20.0381474]
[1726577319856,6.60056,2318.7,2318.5,20.0381474]
[1726577320367,2.2878,2318.7,2318.5,20.0381474]
[1726577320955,6.60057,2318.7,2318.5,20.0381474]
[1726577322369,2.2878,2318.7,2318.5,20.0381474]
[1726577323864,2.2885,2318.9,2318.5,28.6642274]
[1726577324088,2.2885,2318.9,2318.5,24.3511674]
[1726577324298,2.2885,2318.9,2318.5,28.6642074]
[1726577326757,6.6009,2318.9,2318.5,24.3511674]
[1726577326955,1.10210398,2318.8,2318.5,24.3511674]
[1726577327180,6.6009,2318.9,2318.5,24.3511674]
[1726577327380,6.6009,2318.9,2318.5,28.6642174]
[1726577327586,2.2885,2318.9,2318.6,4.31294]
[1726577327864,2.2885,2318.9,2318.8,4.31257]
[1726577328091,2.4211,2319.1,2318.8,4.31257]
[1726577329691,6.73312,2319.1,2318.7,7.6621809]
[1726577330066,6.73312,2319.1,2318.7,11.9748209]
[1726577331131,6.73312,2319.1,2318.7,7.6621009]
[1726577331501,6.73312,2319.1,2318.7,4.31264]
[1726577332823,6.73312,2319.1,2318.7,8.62532]
[1726577333036,6.73312,2319.1,2318.7,4.31264]
[1726577333425,2.4211,2319.1,2318.5,23.3876083]
[1726577333622,2.4211,2319.1,2318.8,4.3124]
[1726577334020,2.4211,2319.1,2318.9,7.6617509]
[1726577334564,2.4666,2319.3,2319.0,4.3122]
[1726577334694,2.4666,2319.3,2319.1,3.3494609]
[1726577335207,2.4666,2319.3,2319.1,7.6614509]
[1726577335622,2.4666,2319.3,2319.1,4.31199]
[1726577336436,2.4666,2319.3,2319.0,4.31217]
[1726577336797,6.77827,2319.3,2318.9,7.6617609]
[1726577337103,6.77827,2319.3,2318.9,4.3123]
[1726577339023,2.4666,2319.3,2318.9,7.6617609]
[1726577339327,2.4666,2319.3,2319.0,4.31219]
[1726577340627,2.4666,2319.3,2318.9,11.9740209]
[1726577341033,2.4666,2319.3,2319.0,4.31219]
[1726577344196,2.4666,2319.3,2319.1,4.312]
[1726577346130,2.4787,2319.5,2319.3,4.31163]
[1726577346300,2.4787,2319.5,2319.4,1.54579646]
[1726577346501,2.3534,2319.7,2319.5,4.3112]
[1726577346705,2.3534,2319.7,2319.4,10.16858646]
[1726577347111,2.3534,2319.7,2319.6,1.54579646]
[1726577348834,2.3534,2319.7,2319.4,5.85721646]
[1726577349141,2.3534,2319.7,2319.4,5.85716646]
[1726577349439,2.3534,2319.7,2319.5,4.31125]
[1726577349610,2.3534,2319.7,2319.6,1.54579646]
[1726577349948,2.3534,2319.7,2319.5,4.31125]
[1726577350436,2.4763,2320.0,2319.7,4.31076]
[1726577350637,2.4763,2320.0,2319.7,4.3108]
[1726577350841,2.4763,2320.0,2319.7,4.31077]
[1726577353339,2.4763,2320.0,2319.9,4.31053]
[1726577353547,2.4706,2320.2,2319.8,7.65844144]
[1726577353732,6.78083,2320.1,2319.7,4.31089]
[1726577355223,11.09113,2320.1,2319.7,4.31089]
[1726577355421,11.09113,2320.1,2319.6,3.34788144]
[1726577355422,2.4126,2319.9,2319.6,7.65894144]
[1726577356207,2.4126,2319.9,2319.7,4.31089]
[1726577357757,2.4126,2319.9,2319.6,7.65896144]
[1726577358484,2.4126,2319.9,2319.7,4.31087]
[1726577359690,2.4126,2319.9,2319.6,7.65896144]
[1726577359691,2.3895,2320.2,2319.9,4.31043]
[1726577359980,2.3895,2320.2,2319.9,4.3104]
[1726577360170,2.3895,2320.2,2320.0,4.31023]
[1726577360483,2.3895,2320.2,2319.9,8.62083]
[1726577361475,2.3895,2320.2,2319.9,8.62085]
[1726577361684,2.3895,2320.2,2320.0,4.31031]
[1726577362847,2.3895,2320.2,2319.8,7.65859144]
[1726577363042,3.059413,2320.2,2319.9,4.31051]
[1726577363787,3.059413,2320.2,2319.9,8.6209]
[1726577364090,3.059413,2320.2,2320.0,4.31031]
[1726577364252,2.3895,2320.2,2320.0,4.31031]
[1726577366788,2.3895,2320.2,2319.9,4.31045]
[1726577367699,2.3895,2320.2,2320.0,4.31033]
[1726577369390,2.3895,2320.2,2319.8,8.6212]
[1726577369590,2.3895,2320.2,2319.9,4.3104]
[1726577370213,2.3895,2320.2,2320.0,4.31033]
[1726577371445,2.3895,2320.2,2320.1,4.31015]
[1726577371736,2.4398,2320.5,2320.1,4.31004]
[1726577371935,2.4398,2320.5,2320.2,4.30985]
[1726577372467,2.4398,2320.5,2320.3,4.30976]
[1726577373261,2.4398,2320.5,2320.1,5.85447596]
[1726577373468,2.4398,2320.5,2320.2,4.30994]
[1726577373761,3.545609,2320.5,2320.2,4.30994]
[1726577373945,6.7427,2320.4,2320.0,4.31025]
[1726577374122,6.7427,2320.4,2320.0,8.62043]
[1726577374327,2.4331,2320.4,2320.1,5.85445596]
[1726577378442,2.4331,2320.4,2320.1,4.31012]
[1726577378637,3.2179339,2320.4,2320.1,4.31012]
[1726577378837,2.4331,2320.4,2320.2,4.30992]
[1726577379050,2.4331,2320.4,2320.2,5.85423596]
[1726577379362,2.4331,2320.4,2320.3,8.61956]
[1726577379755,2.4331,2320.4,2320.3,4.30978]
[1726577380864,2.2698,2320.6,2320.3,4.30978]
[1726577382069,2.3257,2320.5,2320.2,5.85420596]
[1726577382378,2.3257,2320.4,2320.1,4.31013]
[1726577385003,2.3257,2320.4,2320.1,5.85446596]
[1726577385580,2.3257,2320.4,2320.2,4.30997]
[1726577385781,2.3257,2320.4,2320.3,1.54433596]
[1726577386006,2.3257,2320.4,2320.3,5.85411596]
[1726577386368,2.4286,2320.6,2320.3,10.16389596]
[1726577386691,2.4286,2320.6,2320.4,4.30958]
[1726577387905,2.4286,2320.6,2320.3,4.30976]
[1726577388307,2.4286,2320.6,2320.3,8.6194]
[1726577388507,2.4286,2320.6,2320.4,4.30959]
[1726577388675,2.4286,2320.6,2320.3,4.30974]
[1726577390210,2.4286,2320.6,2320.3,8.61939]
[1726577390706,2.4286,2320.6,2320.4,4.30948]
[1726577392789,2.4286,2320.6,2320.1,3.34569767]
[1726577392790,4.30926,2320.6,2320.2,4.30996]
[1726577393093,2.4906,2320.5,2320.2,8.61979]
[1726577393314,2.4906,2320.5,2320.2,8.61973]
[1726577393509,2.4906,2320.5,2320.3,4.30976]
[1726577394312,2.4906,2320.5,2320.2,4.30995]
[1726577394622,2.4906,2320.5,2320.2,8.61977]
[1726577394828,2.4906,2320.5,2320.2,4.30982]
[1726577395120,2.4906,2320.5,2320.2,8.61963]
[1726577395322,2.4906,2320.5,2320.3,4.30975]
[1726577400410,4.76032299,2320.8,2320.4,4.3096]
[1726577400618,2.3688,2320.7,2320.4,4.30948]
[1726577400805,2.3688,2320.7,2320.5,4.30932]
[1726577401006,2.3688,2320.7,2320.5,8.61862]
[1726577401229,2.3688,2320.7,2320.5,7.65495767]
[1726577401522,2.3688,2320.7,2320.6,4.30923]
[1726577403406,2.3739,2320.9,2320.7,4.309]
[1726577407814,2.3739,2320.9,2320.6,4.30923]
[1726577408010,2.3739,2320.9,2320.6,4.30915]
[1726577408217,2.3739,2320.9,2320.7,4.309]
[1726577411616,2.3739,2320.9,2320.6,5.85284931]
[1726577411853,2.4375,2320.8,2320.5,8.61864]
[1726577412037,2.4375,2320.8,2320.5,4.30932]
[1726577412245,2.4375,2320.8,2320.4,1.54372931]
[1726577412246,6.7465,2320.8,2320.4,4.30947]
[1726577412451,2.4375,2320.8,2320.5,4.30939]
[1726577412649,2.4375,2320.8,2320.6,5.85286931]
[1726577412847,2.2539,2321.0,2320.7,4.30904]
[1726577413158,2.2539,2321.0,2320.7,4.309]
[1726577414756,6.5624,2321.0,2320.7,4.309]
[1726577414928,2.3957,2320.9,2320.7,4.309]
[1726577416757,2.3957,2320.9,2320.6,5.85292931]
[1726577417113,7.805768,2320.9,2320.5,4.30937]
[1726577417315,4.30912,2320.7,2320.1,4.31009]
[1726577417557,2.4927,2320.5,2320.2,4.30986]
[1726577417932,2.4927,2320.5,2320.3,4.30978]
[1726577418351,2.4927,2320.5,2320.4,4.3096]
[1726577418523,2.4927,2320.5,2320.3,5.85350931]
[1726577418952,2.4927,2320.5,2320.4,4.3096]
[1726577419155,2.4927,2320.5,2320.3,1.54372931]
[1726577419366,2.4927,2320.5,2320.3,5.85350931]
[1726577422150,6.80223,2320.5,2320.1,5.85380931]
[1726577422366,2.4927,2320.5,2320.2,4.30995]
[1726577425919,3.18366872,2320.5,2320.1,10.16388931]
[1726577426121,2.4927,2320.5,2320.2,4.30993]
[1726577426572,2.4927,2320.5,2320.4,4.3096]
[1726577426871,2.3873,2320.7,2320.5,4.30939]
[1726577427070,2.3873,2320.7,2320.5,1.54372931]
[1726577427436,2.3873,2320.7,2320.5,5.85310931]
[1726577428264,2.3873,2320.7,2320.5,10.16244931]
[1726577428463,2.3538,2320.9,2320.6,4.30914]
[1726577428666,2.3538,2320.9,2320.7,1.54372931]
[1726577428884,6.66214,2321.1,2320.7,5.85268931]
[1726577431354,6.6621,2321.1,2320.9,1.54372931]
[1726577431561,8.40913016,2321.1,2320.9,1.54372931]
[1726577431865,4.10083016,2321.1,2320.9,1.54372931]
[1726577432386,2.3538,2321.1,2320.9,5.85238931]
[1726577432839,2.3538,2321.1,2320.9,1.54372931]
[1726577434535,2.3538,2321.1,2320.8,4.30885]
[1726577435235,2.3538,2321.1,2320.7,1.54372931]
[1726577435443,2.4314,2321.0,2320.7,10.16150931]
[1726577435654,2.4314,2321.0,2320.8,4.30877]
[1726577439075,2.4314,2321.0,2320.7,5.85269931]
[1726577440353,4.3087,2320.9,2320.5,4.30933]
[1726577440552,5.42433013,2320.9,2320.6,1.54372931]
[1726577440883,4.3087,2320.9,2320.6,1.54372931]
[1726577441172,4.3087,2320.9,2320.6,5.85292931]
[1726577441377,6.73989,2321.0,2320.6,5.85292931]
[1726577441568,7.85548027,2321.0,2320.6,5.85292931]
[1726577442434,6.73989,2321.0,2320.6,5.85292931]
[1726577443678,2.303,2320.9,2320.6,1.54372931]
[1726577444056,2.342,2320.7,2319.9,1.35216077]
[1726577444257,1.54372931,2321.1,2320.3,4.30978]
[1726577444258,2.342,2320.4,2320.3,4.30978]
[1726577444457,2.342,2320.7,2320.4,4.30959]
[1726577444697,6.65105,2320.7,2320.4,1.54372931]
[1726577445300,2.342,2320.7,2320.4,5.85328931]
[1726577445665,2.342,2320.7,2320.5,4.3094]
[1726577446193,2.342,2320.7,2320.4,5.85328931]
[1726577447199,2.342,2320.7,2320.6,1.54372931]
[1726577448401,2.342,2320.7,2320.6,5.85295931]
[1726577449373,2.342,2320.7,2320.6,1.54372931]
[1726577450414,2.342,2320.7,2320.5,4.30937]
[1726577451097,2.342,2320.7,2320.4,10.16282931]
[1726577451395,2.342,2320.7,2320.4,10.16271931]
[1726577451603,2.342,2320.7,2320.3,4.30973]
[1726577451812,2.342,2320.7,2320.4,4.30957]
[1726577452009,2.342,2320.7,2320.4,5.85329931]
[1726577455430,6.65111,2320.7,2320.3,4.30973]
[1726577456230,2.342,2320.7,2320.4,4.30957]
[1726577456398,2.342,2320.7,2320.5,4.30932]
[1726577457318,2.342,2320.7,2320.4,5.85318931]
[1726577457794,2.342,2320.7,2320.4,6.86948624]
[1726577458492,2.342,2320.7,2320.4,5.85318931]
[1726577458728,2.342,2320.7,2320.5,4.30939]
[1726577459030,2.342,2320.7,2320.4,1.54372931]
[1726577459235,2.342,2320.7,2320.4,5.85320931]
[1726577459390,2.342,2320.7,2320.5,4.3094]
[1726577459807,2.342,2320.7,2320.4,5.85320931]
[1726577460011,2.342,2320.7,2320.5,4.30941]
[1726577460210,2.342,2320.7,2320.4,10.16273931]
[1726577460411,2.342,2320.7,2320.4,5.85320931]
[1726577461097,6.65107,2320.7,2320.4,1.54372931]
[1726577461299,6.65107,2320.7,2320.3,4.30969]
[1726577461529,7.747069,2320.7,2320.3,4.30969]
[1726577461844,7.747069,2320.7,2320.3,8.61937]
[1726577461999,6.65107,2320.7,2320.3,8.61937]
[1726577462340,6.65107,2320.7,2320.4,4.3096]